bitfinex/quotes_SOLUSD_20250814
["timestamp","ask_amount","ask_price","bid_price","bid_amount"]
[1755178882204,0.64552778,193.64,193.54,15.10621557]
[1755178882367,0.64552778,193.64,193.51,51.52764734]
[1755178882368,18.35743131,193.57,193.51,51.52764734]
[1755178882573,18.35743131,193.58,193.52,15.10621557]
[1755178882777,0.64546111,193.66,193.54,15.10621557]
[1755178883006,0.64546111,193.66,193.56,15.10621557]
[1755178883299,5.163271,193.75,193.61,26.0]
[1755178883479,0.64519459,193.74,193.66,15.10621557]
[1755178883808,5.163271,193.75,193.66,15.79621557]
[1755178884015,24.83618134,193.75,193.66,15.79621557]
[1755178884298,0.64519459,193.74,193.66,15.79621557]
[1755178884503,5.16057588,193.78,193.7,15.10621557]
[1755178884670,24.19102005,193.76,193.71,46.34]
[1755178884875,0.64516129,193.75,193.71,46.34]
[1755178885082,24.19102005,193.72,193.71,46.3]
[1755178885287,25.54628125,193.72,193.67,46.3]
[1755178885492,24.19102005,193.68,193.58,15.10621557]
[1755178885711,24.19102005,193.62,193.58,15.23621557]
[1755178885875,0.71,193.68,193.6,15.10621557]
[1755178886072,26.6452612,193.72,193.62,15.10621557]
[1755178886274,26.0,193.7,193.56,0.69]
[1755178886599,0.6452612,193.72,193.62,15.10621557]
[1755178886908,24.19102005,193.71,193.64,15.10621557]
[1755178887072,5.16245512,193.71,193.66,15.10621557]
[1755178887269,24.19102005,193.67,193.65,46.3]
[1755178887582,1.35546111,193.66,193.63,46.3]
[1755178887794,19.42363987,193.71,193.63,46.3]
[1755178888102,5.16245512,193.71,193.64,15.10621557]
[1755178888306,0.64532782,193.7,193.65,46.3]
[1755178888675,24.19102005,193.68,193.65,46.3]
[1755178889009,24.19102005,193.72,193.66,15.10621557]
[1755178889175,24.19102005,193.69,193.66,15.10621557]
[1755178889500,0.71,193.77,193.66,15.10621557]
[1755178889708,24.19102005,193.76,193.68,26.0]
[1755178889888,24.19102005,193.71,193.67,0.69]
[1755178890212,26.0,193.65,193.5,0.69]
[1755178890416,24.19102005,193.54,193.46,0.69]
[1755178890576,24.19102005,193.48,193.42,0.71]
[1755178890885,26.0,193.57,193.39,15.495468]
[1755178890886,24.19102005,193.45,193.39,15.495468]
[1755178891072,24.19102005,193.47,193.4,46.28]
[1755178891272,24.19102005,193.44,193.4,46.28]
[1755178891805,18.08879011,193.49,193.36,37.18]
[1755178891806,24.19102005,193.41,193.36,37.18]
[1755178892015,0.64632885,193.4,193.37,46.28]
[1755178892173,24.19102005,193.38,193.26,0.71]
[1755178892376,49.29723562,193.48,193.26,0.71]
[1755178892377,0.71,193.45,193.27,46.28]
[1755178892598,24.19102005,193.4,193.28,0.71]
[1755178892905,24.19102005,193.36,193.28,0.71]
[1755178893202,5.17156523,193.37,193.28,0.71]
[1755178893373,5.17156523,193.37,193.27,46.28]
[1755178893374,24.19102005,193.32,193.27,46.28]
[1755178893573,24.19102005,193.29,193.23,0.71]
[1755178893773,24.19102005,193.26,193.24,46.6]
[1755178894003,25.54785058,193.25,193.24,46.6]
[1755178894393,25.54785058,193.25,193.06,0.03]
[1755178894394,26.0,193.22,193.17,15.513096]
[1755178894602,24.19102005,193.18,193.08,0.03]
[1755178894772,1.35709841,193.17,193.09,46.6]
[1755178894973,29.36968395,193.1,193.09,46.6]
[1755178895308,14.23526046,193.24,193.08,0.03]
[1755178895309,0.64723243,193.13,193.08,0.03]
[1755178895485,0.64719892,193.14,193.09,0.71]
[1755178895680,24.19102005,193.13,193.1,46.58]
[1755178895885,0.64719892,193.14,193.1,46.58]
[1755178895886,24.19102005,193.11,193.1,46.58]
[1755178896292,24.19102005,193.11,193.08,0.03]
[1755178896293,24.90102005,193.11,193.08,0.03]
[1755178896494,24.19102005,193.09,193.08,0.03]
[1755178897202,24.90102005,193.09,193.08,0.03]
[1755178897994,25.54838656,193.09,193.08,0.03]
[1755178898188,1.35736651,193.09,193.08,0.03]
[1755178898676,0.64736651,193.09,193.08,0.03]
[1755178898989,26.0,193.16,193.08,0.03]
[1755178899189,0.64716541,193.15,193.1,41.10621557]
[1755178899381,0.64716541,193.15,193.09,15.10621557]
[1755178899382,24.19102005,193.15,193.09,15.10621557]
[1755178899585,0.64703141,193.19,193.1,15.10621557]
[1755178899785,4.2353626,193.3,193.1,15.10621557]
[1755178899786,24.19102005,193.22,193.16,15.10621557]
[1755178900005,24.19102005,193.22,193.15,26.0]
[1755178900006,0.64696444,193.21,193.18,15.10621557]
[1755178900309,0.71,193.25,193.18,15.10621557]
[1755178900310,24.19102005,193.22,193.18,15.10621557]
[1755178900515,0.64696444,193.21,193.18,15.10621557]
[1755178900681,0.71,193.3,193.18,15.10621557]
[1755178900886,24.19102005,193.23,193.18,15.10621557]
[1755178901105,0.64693095,193.22,193.19,5.17625135]
[1755178901310,0.71,193.3,193.2,15.10621557]
[1755178901311,24.19102005,193.26,193.2,15.10621557]
[1755178901494,0.71,193.35,193.24,15.10621557]
[1755178901820,25.513095,193.43,193.26,15.10621557]
[1755178901821,0.64652943,193.34,193.26,15.10621557]
[1755178901993,24.19102005,193.32,193.26,15.10621557]
[1755178902183,0.64662976,193.31,193.26,15.10621557]
[1755178902518,24.19102005,193.32,193.26,15.10621557]
[1755178902682,24.83764981,193.31,193.26,15.10621557]
[1755178902887,24.19102005,193.3,193.26,15.10621557]
[1755178903087,0.64669667,193.29,193.25,46.44]
[1755178903503,24.19102005,193.26,193.12,0.71]
[1755178903710,24.19102005,193.18,193.12,5.8880761]
[1755178903898,0.64683053,193.25,193.14,15.10621557]
[1755178904100,24.19102005,193.2,193.14,15.10621557]
[1755178904296,24.83805146,193.19,193.14,15.10621557]
[1755178904512,24.19102005,193.16,193.13,46.36]
[1755178904711,24.19102005,193.14,193.13,46.36]
[1755178905021,24.19102005,193.14,193.08,0.03]
[1755178905022,24.90102005,193.14,193.08,0.03]
[1755178905205,24.19102005,193.09,193.08,0.03]
[1755178905823,0.64729946,193.11,193.08,0.03]
[1755178906224,24.83835303,193.1,193.08,0.03]
[1755178906404,24.19102005,193.09,193.08,0.03]
[1755178906611,24.90102005,193.09,193.08,0.03]
[1755178907218,5.1789321,193.09,193.08,0.03]
[1755178907622,0.64726594,193.12,193.08,0.03]
[1755178907817,25.86258861,193.33,193.08,0.03]
[1755178907818,5.88613407,193.2,193.09,15.81621557]
[1755178908020,0.64703141,193.19,193.09,15.81621557]
[1755178908224,5.8848836,193.25,193.13,15.10621557]
[1755178908435,24.19102005,193.18,193.14,46.36]
[1755178908600,24.19102005,193.15,193.14,46.36]
[1755178909134,0.64706491,193.18,193.14,46.36]
[1755178909296,0.64693095,193.22,193.15,15.81621557]
[1755178909497,0.71,193.26,193.15,15.81621557]
[1755178909809,24.19102005,193.21,193.15,15.81621557]
[1755178910007,24.19102005,193.21,193.14,64.48155466]
[1755178910008,24.19102005,193.16,193.14,5.1775762]
[1755178910322,24.19102005,193.18,193.15,46.38]
[1755178910661,0.71,193.27,193.16,15.10621557]
[1755178910924,24.19102005,193.21,193.16,15.10621557]
[1755178911107,0.64699792,193.2,193.16,15.10621557]
[1755178911420,24.83801797,193.2,193.16,15.10621557]
[1755178911833,24.19102005,193.19,193.16,15.10621557]
[1755178912231,0.64696444,193.21,193.16,15.10621557]
[1755178912232,24.19102005,193.2,193.16,15.10621557]
[1755178912418,0.64696444,193.21,193.16,20.28323312]
[1755178912914,0.64679706,193.26,193.2,15.10621557]
[1755178913110,0.64679706,193.26,193.22,20.28161259]
[1755178913335,24.19102005,193.3,193.23,0.71]
[1755178913515,1.35656287,193.33,193.26,15.10621557]
[1755178913516,0.64669667,193.29,193.26,15.10621557]
[1755178913720,24.83761636,193.32,193.27,46.36]
[1755178913918,24.19102005,193.3,193.27,46.36]
[1755178914135,24.19102005,193.28,193.27,46.36]
[1755178914408,24.90102005,193.28,193.27,46.36]
[1755178914641,24.90102005,193.28,193.18,0.71]
[1755178914642,24.90102005,193.28,193.19,15.10621557]
[1755178914839,24.19102005,193.2,193.14,15.10621557]
[1755178915007,24.83805146,193.19,193.14,15.10621557]
[1755178915216,0.64703141,193.19,193.1,15.10621557]
[1755178915412,0.64693095,193.22,193.12,15.10621557]
[1755178915665,24.19102005,193.21,193.12,15.10621557]
[1755178915816,0.64699792,193.2,193.16,15.10621557]
[1755178916015,24.19102005,193.18,193.1,15.10621557]
[1755178916234,24.83801797,193.2,193.12,15.10621557]
[1755178916435,24.19102005,193.2,193.12,41.10621557]
[1755178916617,0.64696444,193.21,193.12,15.10621557]
[1755178916938,24.19102005,193.13,193.09,37.24]
[1755178917134,24.83828599,193.12,193.1,46.36]
[1755178917330,24.19102005,193.15,193.1,46.36]
[1755178917637,24.19102005,193.13,193.1,46.36]
[1755178917840,0.64716541,193.15,193.11,15.10621557]
[1755178918044,24.19102005,193.17,193.11,15.10621557]
[1755178918243,0.64713191,193.16,193.11,15.10621557]
[1755178918545,24.19102005,193.12,193.09,37.24]
[1755178918724,24.19102005,193.1,193.03,15.10621557]
[1755178919042,1.35729946,193.11,193.02,15.10621557]
[1755178919043,24.83838656,193.09,193.02,15.10621557]
[1755178919418,0.71,193.11,193.02,15.10621557]
[1755178919419,0.64729946,193.11,193.02,20.28702502]
[1755178919624,24.19102005,193.09,193.02,20.28702502]
[1755178919827,24.19102005,193.09,193.08,46.39]
[1755178920022,24.90102005,193.09,193.08,0.03]
[1755178920333,0.64713191,193.16,193.09,15.10621557]
[1755178920534,0.64683053,193.25,193.16,15.10621557]
[1755178920718,0.64683053,193.25,193.08,46.51976974]
[1755178920719,0.64679706,193.26,193.17,47.05]
[1755178920924,39.71696105,193.27,193.18,15.10621557]
[1755178921228,24.19102005,193.23,193.19,46.36]
[1755178921552,0.64693095,193.22,193.2,46.36]
[1755178921721,24.19102005,193.21,193.15,15.10621557]
[1755178921922,0.64699792,193.2,193.14,34.14]
[1755178922118,24.19102005,193.15,193.1,15.10621557]
[1755178922319,26.64679706,193.26,193.15,15.10621557]
[1755178922535,5.82129144,193.26,193.15,15.79621557]
[1755178922752,24.19102005,193.23,193.15,15.79621557]
[1755178923048,0.64679706,193.26,193.16,46.36]
[1755178923255,0.64679706,193.26,193.19,15.10621557]
[1755178923256,24.19102005,193.24,193.19,15.10621557]
[1755178923554,24.19102005,193.2,193.16,46.36]
[1755178923732,24.19102005,193.18,193.17,61.46621557]
[1755178923935,24.19102005,193.19,193.17,61.46621557]
[1755178924229,0.64706491,193.18,193.1,41.10621557]
[1755178924427,0.64689747,193.23,193.14,15.10621557]
[1755178924630,24.19102005,193.16,193.14,15.10621557]
[1755178924952,24.19102005,193.15,193.09,31.1789106]
[1755178925133,0.64703141,193.19,193.1,46.36]
[1755178925336,24.19102005,193.18,193.13,15.10621557]
[1755178925732,24.83811846,193.17,193.11,20.2845972]
[1755178926061,24.19102005,193.13,193.08,0.03]
[1755178926236,0.64726594,193.12,193.09,46.36]
[1755178926426,0.64716541,193.15,193.09,46.36]
[1755178926629,24.19102005,193.14,193.09,46.36]
[1755178926842,24.19102005,193.14,193.1,15.10621557]
[1755178927051,5.17543743,193.23,193.1,15.10621557]
[1755178927052,24.19102005,193.11,193.1,15.10621557]
[1755178927256,5.17705529,193.16,193.1,15.10621557]
[1755178927453,24.19102005,193.11,193.08,0.03]
[1755178927660,1.33733298,193.1,193.08,0.03]
[1755178927954,24.88102005,193.09,193.08,0.03]
[1755178928345,24.19102005,193.09,193.08,0.03]
[1755178928739,24.19102005,193.11,193.09,15.10621557]
[1755178928951,0.64726594,193.12,193.09,15.10621557]
[1755178929154,12.94072022,193.19,193.09,15.10621557]
[1755178929155,24.83818546,193.15,193.09,15.10621557]
[1755178929343,24.19102005,193.15,193.09,20.28511938]
[1755178929655,24.19102005,193.11,193.09,15.10621557]
[1755178929963,24.19102005,193.1,193.09,15.10621557]
[1755178930129,24.19102005,193.1,193.08,46.39]
[1755178930458,0.64716541,193.15,193.09,15.10621557]
[1755178930757,24.19102005,193.16,193.09,15.10621557]
[1755178931052,24.19102005,193.12,193.09,15.10621557]
[1755178931464,24.19102005,193.14,193.09,15.10621557]
[1755178931633,5.82393742,193.17,193.09,15.10621557]
[1755178931634,24.19102005,193.1,193.09,15.10621557]
[1755178931832,1.33723243,193.13,193.09,15.10621557]
[1755178931833,24.19102005,193.11,193.09,15.10621557]
[1755178932361,24.19102005,193.12,193.09,15.10621557]
[1755178932549,1.33729946,193.11,193.08,0.03]
[1755178932739,0.69,193.1,193.09,46.36]
[1755178932933,24.88102005,193.1,193.09,46.36]
[1755178933158,26.0,193.07,192.94,34.14]
[1755178933458,3.76859502,193.06,192.95,18.82941435]
[1755178933659,24.19102005,193.05,192.96,0.69]
[1755178933962,24.19102005,193.05,192.97,15.10621557]
[1755178934154,24.19102005,193.06,192.97,15.10621557]
[1755178934357,24.19102005,193.1,193.03,15.10621557]
[1755178934577,1.33719892,193.14,193.05,15.10621557]
[1755178934746,3.78429169,193.13,193.09,15.10621557]
[1755178934945,24.19102005,193.18,193.11,15.10621557]
[1755178935133,24.19102005,193.16,193.11,15.10621557]
[1755178935336,24.19102005,193.16,193.08,26.0]
[1755178935337,24.19102005,193.12,193.06,15.10621557]
[1755178935567,24.19102005,193.09,193.07,46.36]
[1755178935746,27.97391221,193.08,193.07,15.10621557]
[1755178936063,28.66391221,193.08,193.07,46.36]
[1755178936568,27.97391221,193.08,193.07,46.36]
[1755178936864,3.78289216,193.08,193.07,61.46621557]
[1755178937252,0.64719892,193.14,193.08,15.10621557]
[1755178937442,3.80320274,193.13,193.1,15.10621557]
[1755178937768,24.19102005,193.23,193.14,15.10621557]
[1755178937966,24.19102005,193.23,193.16,15.10621557]
[1755178938193,24.19102005,193.22,193.16,15.10621557]
[1755178938346,1.33679706,193.26,193.16,15.10621557]
[1755178938957,24.19102005,193.25,193.18,15.10621557]
[1755178939356,1.33679706,193.26,193.2,15.10621557]
[1755178939357,24.19102005,193.24,193.2,15.10621557]
[1755178939668,0.64679706,193.26,193.2,15.79621557]
[1755178939969,0.06,193.29,193.2,15.79621557]
[1755178939970,24.19102005,193.24,193.2,15.10621557]
[1755178940271,24.25102005,193.29,193.24,15.10621557]
[1755178940447,24.25102005,193.29,193.23,26.0]
[1755178940448,0.06,193.29,193.26,15.10621557]
[1755178940647,0.06,193.29,193.28,15.10621557]
[1755178940843,0.06,193.29,193.26,15.10621557]
[1755178941169,0.06,193.29,193.26,15.79621557]
[1755178941360,0.06,193.29,193.26,15.10621557]
[1755178941563,0.06,193.29,193.28,15.10621557]
[1755178942284,0.06,193.29,193.28,15.79621557]
[1755178942864,0.06,193.29,193.28,15.10621557]
[1755178943064,24.25102005,193.29,193.28,46.32]
[1755178943269,0.06,193.29,193.28,61.42621557]
[1755178943783,0.06,193.29,193.28,67.29005662]
[1755178943965,0.06,193.29,193.28,61.42621557]
[1755178944151,0.06,193.29,193.28,15.10621557]
[1755178944351,0.06,193.29,193.28,61.42621557]
[1755178944965,0.06,193.29,193.28,66.60005662]
[1755178945282,1e-08,193.29,193.28,67.41872788]
[1755178945580,1e-08,193.29,193.28,20.97005662]
[1755178945781,0.06,193.31,193.3,41.10621557]
[1755178945986,0.06,193.33,193.31,15.10621557]
[1755178946281,1e-08,193.33,193.32,96.34464933]
[1755178946487,0.69,193.48,193.36,41.10621557]
[1755178946488,0.646095,193.47,193.36,41.10621557]
[1755178946659,24.19102005,193.48,193.41,15.10621557]
[1755178946859,24.19102005,193.48,193.43,15.10621557]
[1755178947158,0.7056945,193.59,193.43,15.10621557]
[1755178947159,0.69,193.57,193.51,15.10621557]
[1755178947357,0.06,193.59,193.52,46.3]
[1755178947558,0.06,193.59,193.55,15.10621557]
[1755178948971,0.06,193.59,193.58,15.10621557]
[1755178949287,0.75,193.59,193.51,34.12]
[1755178949457,24.19102005,193.55,193.52,61.38621557]
[1755178949664,0.06,193.59,193.52,61.38621557]
[1755178949879,24.19102005,193.58,193.52,61.38621557]
[1755178950184,24.19102005,193.55,193.54,15.10621557]
[1755178950387,24.88102005,193.55,193.54,15.10621557]
[1755178950588,0.06,193.59,193.54,41.77621557]
[1755178950966,0.06,193.59,193.54,41.10621557]
[1755178951301,5.2256107,193.59,193.56,15.10621557]
[1755178951455,5.2256107,193.59,193.58,15.10621557]
[1755178951765,5.2256107,193.59,193.51,34.79]
[1755178951766,43.67621543,193.59,193.51,34.12]
[1755178951970,0.7,193.58,193.51,34.12]
[1755178952297,0.64576122,193.57,193.53,15.10621557]
[1755178952463,0.06,193.59,193.57,15.10621557]
[1755178952664,0.06,193.59,193.58,61.34621557]
[1755178953198,24.95102005,193.59,193.58,61.34621557]
[1755178953384,43.0304663,193.59,193.51,34.12]
[1755178953558,29.3584446,193.52,193.51,34.12]
[1755178953758,30.0584446,193.52,193.51,34.12]
[1755178953958,30.0584446,193.52,193.51,49.22621557]
[1755178954182,29.3584446,193.52,193.51,34.12]
[1755178954367,5.16742455,193.52,193.51,49.22621557]
[1755178954566,24.19102005,193.56,193.52,15.10621557]
[1755178954784,0.06,193.59,193.54,15.10621557]
[1755178954969,18.44504366,193.56,193.54,15.10621557]
[1755178955168,19.09087161,193.55,193.51,34.12]
[1755178955364,18.44504366,193.54,193.52,61.32621557]
[1755178955561,24.25809589,193.53,193.52,61.32621557]
[1755178955761,24.25809589,193.53,193.51,34.12]
[1755178955762,24.3122012,193.53,193.51,34.12]
[1755178955962,26.0,193.49,193.45,15.495468]
[1755178956287,18.44504366,193.46,193.34,26.0]
[1755178956490,18.44504366,193.39,193.31,34.08]
[1755178956669,1.34616179,193.45,193.31,34.08]
[1755178956670,0.7,193.44,193.31,34.75]
[1755178956984,0.6462286,193.43,193.35,15.495468]
[1755178957190,0.7,193.42,193.31,0.03]
[1755178957387,24.24399833,193.34,193.31,0.03]
[1755178957588,29.41676886,193.32,193.31,0.03]
[1755178957889,5.87250016,193.34,193.31,46.25]
[1755178958097,24.24399833,193.33,193.32,15.10621557]
[1755178958388,5.17250016,193.34,193.31,46.25]
[1755178958578,24.24399833,193.32,193.31,46.25]
[1755178958782,24.94399833,193.32,193.31,0.03]
[1755178959092,24.94399833,193.32,193.29,0.03]
[1755178959093,26.0,193.3,193.29,0.03]
[1755178959275,26.0,193.3,193.23,46.22]
[1755178959276,1.34666321,193.3,193.27,0.03]
[1755178959591,24.24399833,193.28,193.27,0.03]
[1755178959773,24.89072846,193.28,193.27,0.03]
[1755178959968,29.41783938,193.28,193.27,0.03]
[1755178960172,0.64669667,193.29,193.27,0.03]
[1755178960367,24.24399833,193.3,193.27,0.03]
[1755178960571,24.24399833,193.32,193.27,0.03]
[1755178960793,24.24399833,193.31,193.27,0.03]
[1755178961195,24.24399833,193.29,193.27,0.03]
[1755178961607,0.64656287,193.33,193.27,0.03]
[1755178961770,24.24399833,193.32,193.29,15.10621557]
[1755178961977,24.24399833,193.33,193.31,15.10621557]
[1755178962171,0.7,193.38,193.31,15.10621557]
[1755178962172,0.64646255,193.36,193.31,15.10621557]
[1755178962375,24.24399833,193.32,193.31,15.10621557]
[1755178962571,0.7,193.4,193.31,15.10621557]
[1755178962783,24.24399833,193.38,193.31,15.10621557]
[1755178963087,24.24399833,193.4,193.35,15.10621557]
[1755178963283,24.24399833,193.41,193.37,15.10621557]
[1755178963589,24.24399833,193.4,193.37,15.10621557]
[1755178963793,24.24399833,193.38,193.3,41.10621557]
[1755178963970,24.24399833,193.38,193.32,15.10621557]
[1755178964170,0.7,193.4,193.32,15.10621557]
[1755178964367,24.24399833,193.33,193.28,15.10621557]
[1755178964601,24.24399833,193.32,193.3,15.10621557]
[1755178964770,24.24399833,193.34,193.3,15.10621557]
[1755178965098,24.24399833,193.37,193.3,15.77621557]
[1755178965399,0.7,193.41,193.33,15.10621557]
[1755178965400,24.24399833,193.41,193.33,15.10621557]
[1755178965590,24.24399833,193.38,193.34,46.22]
[1755178965772,24.24399833,193.39,193.34,46.22]
[1755178965977,24.24399833,193.38,193.34,46.22]
[1755178966188,24.24399833,193.39,193.34,46.22]
[1755178966500,16.15187383,193.5,193.37,26.0]
[1755178966672,0.64599483,193.5,193.38,15.77621557]
[1755178966879,24.24399833,193.49,193.4,15.10621557]
[1755178967181,0.7,193.55,193.44,15.10621557]
[1755178967397,0.64586132,193.54,193.46,15.10621557]
[1755178967573,0.76,193.59,193.49,15.10621557]
[1755178967773,0.76,193.59,193.51,20.27390716]
[1755178967986,0.76,193.59,193.51,33.19313614]
[1755178968271,24.30399833,193.59,193.51,33.19313614]
[1755178968673,24.88972619,193.58,193.51,20.27390716]
[1755178968874,24.24399833,193.55,193.51,20.27390716]
[1755178969075,24.24399833,193.56,193.51,20.27390716]
[1755178969307,1.4056945,193.59,193.51,15.10621557]
[1755178969490,24.24399833,193.57,193.51,15.10621557]
[1755178969803,5.16610233,193.57,193.51,15.10621557]
[1755178970100,24.24399833,193.53,193.52,46.2]
[1755178970893,24.24399833,193.54,193.53,15.10621557]
[1755178971098,24.24399833,193.54,193.52,46.2]
[1755178971511,5.22578987,193.59,193.53,15.10621557]
[1755178971684,24.24399833,193.57,193.53,15.10621557]
[1755178972097,24.24399833,193.56,193.53,15.10621557]
[1755178972285,5.16609184,193.57,193.53,15.10621557]
[1755178972485,0.64579458,193.56,193.53,15.10621557]
[1755178972699,24.24399833,193.55,193.53,15.10621557]
[1755178972896,1.34579458,193.56,193.53,15.10621557]
[1755178973101,0.7,193.55,193.47,15.10621557]
[1755178973401,0.7,193.55,193.46,60.1]
[1755178973402,5.81185306,193.57,193.49,15.10621557]
[1755178973603,5.22580486,193.59,193.49,15.10621557]
[1755178973820,0.06,193.59,193.52,41.10621557]
[1755178973984,0.06,193.59,193.58,15.10621557]
[1755178974184,0.06,193.59,193.58,61.26621557]
[1755178974379,0.06,193.59,193.58,61.93621557]
[1755178975098,0.06,193.61,193.6,41.10621557]
[1755178975310,0.06,193.61,193.6,41.77621557]
[1755178975613,0.06,193.61,193.6,41.10621557]
[1755178975788,0.06,193.61,193.6,41.77621557]
[1755178976184,0.06,193.61,193.6,41.10621557]
[1755178976383,0.06,193.61,193.6,46.94150482]
[1755178976790,0.06,193.61,193.6,41.10621557]
[1755178977889,0.06,193.61,193.6,46.27150482]
[1755178978092,0.06,193.61,193.6,41.10621557]
[1755178978603,0.06,193.61,193.6,15.10621557]
[1755178978816,0.06,193.61,193.53,5.16715648]
[1755178978817,1.4056278,193.61,193.46,34.77]
[1755178979034,1.4056278,193.61,193.46,34.1]
[1755178979188,0.7,193.6,193.46,34.1]
[1755178979515,0.6456945,193.59,193.49,26.0]
[1755178979705,0.7,193.58,193.46,34.77]
[1755178980019,5.16635668,193.56,193.46,34.1]
[1755178980224,0.64576122,193.57,193.47,46.12]
[1755178980225,5.81186447,193.57,193.47,46.12]
[1755178980386,0.06,193.61,193.48,0.83712355]
[1755178980585,0.06,193.61,193.55,15.10621557]
[1755178980912,0.06,193.61,193.59,15.10621557]
[1755178981097,5.22503644,193.61,193.6,46.12]
[1755178981430,26.0,193.6,193.46,15.493067]
[1755178981631,26.0,193.58,193.47,46.12]
[1755178981929,26.0,193.55,193.48,46.12]
[1755178982102,18.08224839,193.56,193.39,15.493067]
[1755178982103,26.0,193.53,193.39,15.493067]
[1755178982291,1.32592806,193.52,193.36,0.71]
[1755178982827,0.68,193.51,193.36,0.71]
[1755178983125,0.64599483,193.5,193.38,26.0]
[1755178983289,0.68,193.49,193.39,46.12]
[1755178983613,0.6460616,193.48,193.39,46.12]
[1755178983827,0.68,193.47,193.39,46.12]
[1755178983994,26.0,193.45,193.39,46.12]
[1755178984187,1.3261952,193.44,193.4,15.10621557]
[1755178984696,0.68,193.44,193.4,15.10621557]
[1755178984903,0.64602821,193.49,193.4,15.81621557]
[1755178985113,0.68,193.5,193.4,15.81621557]
[1755178985528,0.68,193.5,193.4,15.10621557]
[1755178985700,0.64602821,193.49,193.4,15.10621557]
[1755178985895,0.64602821,193.49,193.42,20.27607233]
[1755178986499,1.32599483,193.5,193.42,20.27607233]
[1755178986914,0.64596144,193.51,193.42,33.20131273]
[1755178987138,0.64596144,193.51,193.42,20.27607233]
[1755178987451,0.68,193.55,193.42,33.91131273]
[1755178987614,0.64586132,193.54,193.42,59.91131273]
[1755178988037,0.64586132,193.54,193.42,46.27607233]
[1755178988038,5.84715754,193.53,193.42,46.27607233]
[1755178988313,27.32592806,193.52,193.44,15.10621557]
[1755178988520,0.68,193.51,193.44,15.10621557]
[1755178988741,18.08414308,193.54,193.36,0.71]
[1755178989043,4.18992031,193.7,193.48,25.44539591]
[1755178989246,79.6,193.64,193.48,25.44539591]
[1755178989538,6.29934133,193.64,193.51,25.07784481]
[1755178989720,21.79721033,193.64,193.53,25.67352002]
[1755178989909,24.48008982,193.64,193.54,25.89049936]
[1755178990115,27.23682627,193.78,193.56,40.40258827]
[1755178990315,12.58349044,193.87,193.56,25.2963727]
[1755178990540,11.4531162,194.2,193.58,25.62004698]
[1755178990727,313.17342133,194.35,193.62,25.99706618]
[1755178990939,4.20677284,193.97,193.61,25.42190609]
[1755178991110,132.5,193.96,193.65,25.13971956]
[1755178991310,132.5,193.96,193.69,25.37256274]
[1755178991741,46.1,193.95,193.69,25.44817028]
[1755178991913,132.42281627,193.96,193.95,22.18668673]
[1755178992114,162.03689762,193.96,193.69,25.45115853]
[1755178992333,177.33253016,193.96,193.71,25.03791998]
[1755178992539,177.02379524,193.96,193.71,25.03791998]
[1755178992736,161.49661151,193.96,193.68,25.5378425]
[1755178992916,161.49661151,193.96,193.67,15.10621557]
[1755178992917,160.9563254,193.96,193.67,25.4155623]
[1755178993123,7.81216933,193.95,193.63,25.47601648]
[1755178993322,5.156,193.97,193.58,15.10621557]
[1755178993323,146.25195794,193.94,193.58,15.10621557]
[1755178993543,146.25195794,193.94,193.53,0.71]
[1755178993544,15.29563254,193.92,193.65,25.55934361]
[1755178993725,15.14126508,193.92,193.65,25.55934361]
[1755178994039,14.60097897,193.92,193.66,15.10621557]
[1755178994235,25.76844881,193.89,193.67,25.4155623]
[1755178994434,25.76844881,193.89,193.68,15.10621557]
[1755178994435,25.15097897,193.89,193.68,15.10621557]
[1755178994643,5.156,193.97,193.94,8.99052818]
[1755178994850,5.156,193.97,193.94,4.33132621]
[1755178995055,14.79748065,193.96,193.71,25.03791998]
[1755178995231,14.79748065,193.96,193.55,0.35929282]
[1755178995232,14.10282708,193.96,193.63,15.10621557]
[1755178995436,14.98689762,193.95,193.66,25.26181928]
[1755178995760,16.63448052,193.96,193.58,0.11394792]
[1755178995761,1e-08,193.94,193.68,25.5378425]
[1755178995935,25.74886268,193.96,193.74,25.97629101]
[1755178996139,25.74886268,193.96,193.65,15.10621557]
[1755178996355,25.74886268,193.96,193.95,0.07718373]
[1755178996356,41.04449522,193.96,193.95,0.07718373]